bitfinex-derivatives/quotes_ETHF0:USTF0_20241008
["timestamp","ask_amount","ask_price","bid_price","bid_amount"]
[1728393195423,4.1232,2425.3,2425.1,0.8063]
[1728393195631,4.1232,2425.3,2425.1,0.3873]
[1728393195632,3.63248,2425.2,2425.1,0.3873]
[1728393195930,0.41251,2425.0,2424.9,0.8436]
[1728393196231,3.63251,2425.0,2424.9,0.8436]
[1728393196433,3.63251,2425.0,2424.9,0.4278]
[1728393201028,0.4126,2424.6,2424.5,0.41259]
[1728393201224,0.41263,2424.4,2424.3,0.41262]
[1728393201527,1.0315,2424.5,2424.1,1.45603]
[1728393201528,41.2258,2424.5,2424.1,1.45603]
[1728393201728,3.63264,2424.3,2424.2,0.41262]
[1728393203932,3.63264,2424.3,2424.1,0.4244]
[1728393203933,0.41265,2424.2,2424.1,0.83706]
[1728393204121,3.22,2424.3,2424.1,0.4244]
[1728393204429,0.41265,2424.2,2424.1,0.83705]
[1728393205428,3.63265,2424.3,2424.2,0.41265]
[1728393205824,0.41266,2424.2,2424.1,0.41265]
[1728393206030,3.6223,2424.3,2424.0,1.2259]
[1728393206226,0.41266,2424.2,2424.1,0.41265]
[1728393206635,0.41262,2424.4,2424.3,0.41261]
[1728393206930,3.6101,2424.6,2424.5,0.4126]
[1728393206931,0.41259,2424.6,2424.5,0.4126]
[1728393207633,0.41259,2424.6,2424.5,0.8185]
[1728393207834,3.63257,2424.7,2424.6,0.41258]
[1728393208028,0.41258,2424.6,2424.5,0.81849]
[1728393208730,3.63257,2424.7,2424.6,0.41258]
[1728393209230,3.22,2424.7,2424.6,0.41258]
[1728393210325,3.63256,2424.7,2424.6,0.41258]
[1728393210934,3.22,2424.7,2424.6,0.41258]
[1728393211331,3.63256,2424.7,2424.6,0.41258]
[1728393212633,3.22,2424.7,2424.6,0.41258]
[1728393212935,0.41255,2424.8,2424.7,0.41256]
[1728393215038,3.22,2424.9,2424.5,0.4059]
[1728393215333,3.63253,2424.9,2424.8,0.41254]
[1728393216241,3.63253,2424.9,2424.8,0.82954]
[1728393217235,1.42146,2425.1,2425.0,0.41251]
[1728393217236,3.63251,2425.1,2425.0,0.41251]
[1728393217843,3.63251,2425.1,2424.9,0.3861]
[1728393217844,0.41251,2425.0,2424.9,0.79861]
[1728393218328,0.41251,2425.0,2424.9,0.3861]
[1728393218531,0.41251,2425.0,2424.9,0.79863]
[1728393221542,0.41253,2424.9,2424.8,0.82953]
[1728393221735,3.63253,2424.9,2424.8,0.82953]
[1728393224448,0.41252,2425.0,2424.9,0.41253]
[1728393224648,3.63252,2425.0,2424.9,0.41253]
[1728393228449,1.90252,2425.0,2424.9,0.41253]
[1728393229244,1.90252,2425.0,2423.9,0.41269]
[1728393229245,0.41268,2424.0,2423.9,0.41269]
[1728393229446,0.41268,2424.0,2423.8,0.4025]
[1728393229447,0.4127,2423.9,2423.8,0.4025]
[1728393229652,0.3301,2423.9,2423.8,0.4025]
[1728393229846,0.4127,2423.9,2423.8,0.4025]
[1728393230045,4.6978,2424.0,2423.8,0.4025]
[1728393230243,5.11049,2424.0,2423.8,0.4025]
[1728393230453,4.6978,2424.0,2423.8,0.4025]
[1728393230644,0.4127,2423.9,2423.8,0.4025]
[1728393232554,3.6327,2423.9,2423.8,0.4025]
[1728393234455,0.41273,2423.7,2423.6,1.83076335]
[1728393234762,0.41272,2423.8,2423.7,0.3992]
[1728393235161,0.41272,2423.8,2423.7,0.81193]
[1728393235456,0.41272,2423.8,2423.7,0.3992]
[1728393236756,0.41273,2423.7,2423.2,3.2078]
[1728393236960,0.41273,2423.7,2422.7,1.44479655]
[1728393236961,0.41289,2422.8,2422.7,1.44479655]
[1728393237156,3.22,2422.8,2422.7,1.44480655]
[1728393237657,3.63289,2422.8,2422.7,1.44480655]
[1728393238057,3.63289,2422.8,2422.7,1.03190655]
[1728393238258,10.981,2424.6,2422.8,1.03222]
[1728393238259,1.03192,2423.6,2422.8,1.03222]
[1728393238456,0.41278,2423.5,2423.4,0.41278]
[1728393238763,0.4128,2423.3,2422.9,5.04606]
[1728393238958,0.41279,2423.4,2423.3,0.41279]
[1728393239156,0.41279,2423.4,2422.9,5.04606]
[1728393239157,3.22,2423.5,2422.9,4.65806]
[1728393239553,0.41281,2423.3,2423.2,0.4128]
[1728393240064,0.4128,2423.3,2423.2,0.4128]
[1728393240360,3.22,2423.5,2422.9,4.65806]
[1728393240361,3.22,2423.5,2422.9,3.6259]
[1728393240549,23.52049943,2431.6,2424.0,0.41268]
[1728393240550,0.41267,2424.1,2424.0,0.41268]
[1728393240750,4.23927,2424.6,2423.0,4.1264]
[1728393240751,0.41265,2424.2,2423.7,1.03184]
[1728393240958,0.41265,2424.2,2423.8,0.3952]
[1728393241262,0.41265,2424.2,2424.0,0.41267]
[1728393241560,3.22,2424.1,2424.0,0.41267]
[1728393241959,3.63266,2424.1,2424.0,0.41267]
[1728393242159,3.63266,2424.1,2424.0,0.41268]
[1728393242356,3.22,2424.1,2423.9,0.41268]
[1728393242660,0.4127,2423.9,2423.8,0.80791]
[1728393242855,3.6327,2423.9,2423.8,0.80791]
[1728393243056,3.6327,2423.9,2423.8,0.3952]
[1728393244057,3.6327,2423.9,2423.7,0.41273]
[1728393244265,0.41275,2423.6,2423.5,0.4053]
[1728393244459,0.41275,2423.6,2423.5,0.81806]
[1728393244766,3.63275,2423.6,2423.5,0.81806]
[1728393245559,14.36609,2423.6,2422.7,5.31723981]
[1728393245761,3.22,2422.8,2422.7,1.44480655]
[1728393246163,3.0374,2422.8,2422.7,1.03190655]
[1728393246463,13.76009,2422.8,2422.7,1.03190655]
[1728393246662,6.49365,2423.5,2422.7,1.03190655]
[1728393246663,3.2078,2423.3,2422.7,1.03190655]
[1728393246858,44.43282,2423.2,2423.0,0.41284]
[1728393247060,4.25194,2423.5,2422.7,4.66050655]
[1728393247258,0.41278,2423.5,2423.3,0.41279]
[1728393247562,0.41278,2423.5,2423.3,0.4128]
[1728393247960,0.41278,2423.4,2423.2,0.41281]
[1728393248269,0.41281,2423.3,2422.8,4.24002]
[1728393248466,3.2078,2423.6,2422.8,3.2078]
[1728393248664,3.2078,2423.6,2423.1,0.41283]
[1728393248665,3.22,2423.5,2423.1,0.41283]
[1728393248859,0.4128,2423.4,2422.8,3.2078]
[1728393249160,0.4128,2423.4,2423.1,0.41283]
[1728393250169,0.4128,2423.4,2422.8,3.2078]
[1728393250364,3.6191,2423.5,2422.8,3.2078]
[1728393250557,3.22,2422.9,2422.8,3.62069]
[1728393250760,3.22,2422.9,2422.8,3.2078]
[1728393250960,7.76007,2422.9,2422.8,3.2078]
[1728393251558,7.76007,2422.9,2422.8,3.6303]
[1728393251759,4.54007,2422.9,2422.8,3.2078]
[1728393253865,4.54007,2422.9,2422.8,3.62069]
[1728393254168,4.54007,2422.9,2422.8,3.2078]
[1728393254370,4.54007,2422.9,2422.8,3.62069]
[1728393254771,4.1272,2422.9,2422.8,3.62069]
[1728393255070,4.54007,2422.9,2422.8,3.62069]
[1728393255571,4.1272,2422.9,2422.7,1.03190655]
[1728393255777,0.41288,2422.9,2422.8,0.41289]
[1728393256071,0.3991,2423.0,2422.7,1.44479655]
[1728393256072,0.41289,2422.8,2422.7,1.44479655]
[1728393256269,0.41289,2422.8,2422.7,1.03190655]
[1728393256470,4.54009,2422.8,2422.7,1.44480655]
[1728393256667,4.1272,2422.8,2422.7,1.44480655]
[1728393256862,4.54009,2422.8,2422.7,1.44480655]
[1728393257068,0.41289,2422.8,2422.7,1.44480655]
[1728393258869,0.41288,2422.9,2422.8,0.41288]
[1728393259178,3.62066,2423.0,2422.9,0.41287]
[1728393259572,7.74786,2423.0,2422.9,0.41287]
[1728393260072,0.41288,2422.9,2422.8,0.41288]
[1728393260278,7.335,2423.0,2422.7,1.03190655]
[1728393260279,3.2078,2423.0,2422.7,1.03190655]
[1728393260481,3.62067,2423.0,2422.9,0.41287]
[1728393260973,7.74787,2423.0,2422.9,0.41287]
[1728393261376,7.335,2423.0,2422.7,1.03190655]
[1728393261674,0.41287,2422.9,2422.8,0.41287]
[1728393262074,4.1272,2422.9,2422.7,1.03190655]
[1728393262279,0.41289,2422.8,2422.7,1.44479655]
[1728393262579,0.41287,2422.9,2422.8,0.41287]
[1728393262769,0.41289,2422.8,2422.7,1.44479655]
[1728393263373,0.41289,2422.9,2422.8,0.41288]
[1728393263673,0.41289,2422.8,2422.7,1.44479655]
[1728393265667,4.23994,2423.0,2422.7,1.03190655]
[1728393265868,4.23994,2423.0,2422.8,0.41287]
[1728393265869,0.41288,2422.9,2422.8,0.41287]
[1728393266074,4.54008,2422.9,2422.8,0.41287]
[1728393266772,4.54008,2422.9,2422.8,0.81857]
[1728393266972,4.54008,2422.9,2422.8,0.4057]
[1728393269081,4.54008,2422.9,2422.8,0.81859]
[1728393269276,4.1272,2422.9,2422.8,0.81859]
[1728393269976,4.1272,2422.9,2422.8,0.4057]
[1728393270179,4.54007,2422.9,2422.8,0.4057]
[1728393270484,4.54007,2422.9,2422.8,0.81859]
[1728393271079,4.1272,2422.9,2422.8,0.81859]
[1728393271286,4.54007,2422.9,2422.8,0.81859]
[1728393272080,4.1272,2422.9,2422.8,0.81859]
[1728393272277,4.54007,2422.9,2422.8,0.81859]
[1728393274979,0.41287,2422.9,2422.8,0.81859]
[1728393276302,3.2078,2423.3,2423.2,0.41282]
[1728393276485,2.06342,2424.1,2423.2,0.41282]
[1728393276486,4.135,2424.0,2423.2,6.4278]
[1728393276788,3.22,2424.1,2424.0,0.41267]
[1728393276789,0.41267,2424.1,2424.0,0.41267]
[1728393276979,0.41264,2424.3,2424.2,0.41264]
[1728393277173,4.25151,2424.5,2423.7,4.25183]
[1728393277174,0.41262,2424.4,2424.3,0.41262]
[1728393277377,4.1248,2424.4,2423.9,0.8039]
[1728393277574,0.41262,2424.4,2424.3,0.41262]
[1728393278686,3.63258,2424.6,2424.5,0.4126]
[1728393278888,3.22,2424.6,2424.5,0.4126]
[1728393279584,0.41257,2424.7,2424.6,0.41258]
[1728393279786,3.63256,2424.8,2424.6,0.41258]
[1728393279975,3.63256,2424.8,2424.7,0.3982]
[1728393280881,3.63256,2424.8,2424.7,0.81076]
[1728393281285,3.2078,2424.9,2424.8,0.41254]
[1728393281477,3.62033,2424.9,2424.8,0.41254]
[1728393281791,0.41253,2424.9,2424.8,0.41254]
[1728393282086,0.41253,2424.9,2424.8,0.82434]
[1728393282977,4.23901,2425.2,2424.8,0.82434]
[1728393282978,3.2078,2425.2,2424.8,0.4118]
[1728393283183,40.8,2425.3,2424.8,0.4118]
[1728393283384,44.02,2425.3,2424.9,0.4133]
[1728393283689,3.22,2425.1,2424.8,0.82433]
[1728393283879,0.41251,2425.0,2424.8,0.82433]
[1728393284280,0.41251,2425.0,2424.8,0.4118]
[1728393284480,0.41251,2425.0,2424.9,0.41253]
[1728393285784,3.22,2425.1,2425.0,0.41251]
[1728393286084,44.02,2425.3,2425.1,0.41249]
[1728393286289,40.8,2425.3,2425.2,0.41248]
[1728393286484,6.4278,2425.5,2425.3,0.41245]
[1728393286682,6.84024,2425.5,2425.3,0.41245]
[1728393286885,6.84023,2425.5,2425.4,0.4077]
[1728393289388,3.62023,2425.5,2425.4,0.4077]
[1728393289578,0.41243,2425.5,2425.4,0.4077]
[1728393289781,6.84023,2425.5,2425.4,0.4077]
[1728393289984,6.4278,2425.5,2424.8,4.65097]
[1728393290183,0.41248,2425.3,2424.9,0.3997]
[1728393290382,0.41248,2425.2,2425.1,0.41248]
[1728393290779,0.41247,2425.3,2425.2,0.41247]
[1728393290983,7.45889,2425.5,2425.2,0.41247]
[1728393291183,0.41244,2425.4,2424.9,0.3997]
[1728393291391,6.4278,2425.5,2424.9,0.3997]
[1728393291692,6.84023,2425.5,2425.4,0.41244]
[1728393291886,3.2078,2425.5,2425.4,0.41244]
[1728393292290,3.2078,2425.5,2425.0,4.25128]
[1728393292494,0.41245,2425.4,2425.3,0.41246]
[1728393293382,0.41246,2425.4,2425.2,0.41]
[1728393293687,0.41246,2425.4,2425.2,0.82246]
[1728393293887,0.41246,2425.3,2425.2,0.82247]
[1728393294087,0.41246,2425.3,2425.2,0.41247]
[1728393295491,0.41246,2425.3,2425.0,0.41251]
[1728393295687,0.41246,2425.3,2425.2,0.41248]
[1728393296085,6.84024,2425.5,2425.4,0.41244]
[1728393296691,0.41245,2425.4,2425.3,0.41245]
[1728393297100,6.4278,2425.5,2425.0,1.03128]
[1728393297101,3.62024,2425.5,2425.4,0.41244]
[1728393297699,0.41245,2425.4,2425.3,0.41245]
[1728393300403,0.41247,2425.3,2425.2,0.41247]
[1728393300996,6.4278,2425.5,2424.9,0.3997]
[1728393301196,4.239,2425.2,2424.9,0.3997]
[1728393301397,0.41251,2425.0,2424.9,0.81221]
[1728393301596,0.41251,2425.0,2424.9,0.41251]
[1728393304001,3.22,2425.1,2424.8,0.4118]
[1728393304296,3.22,2425.1,2424.5,0.3956]
[1728393304297,0.41258,2424.6,2424.5,0.3956]
[1728393304497,0.41258,2424.6,2424.3,3.2078]
[1728393304498,0.41261,2424.4,2424.3,3.62042]
[1728393304994,0.41261,2424.4,2424.3,0.41262]
[1728393305194,0.41261,2424.4,2424.1,0.41265]
[1728393305195,0.41266,2424.2,2424.1,0.41265]
[1728393305399,0.41264,2424.3,2424.2,0.41263]
[1728393306403,3.22,2424.5,2424.4,0.41261]
[1728393306611,44.0078,2424.6,2423.9,7.2405]
[1728393306798,0.41264,2424.3,2424.2,0.41263]
[1728393306996,1.0315,2424.5,2423.9,8.27224]
[1728393307196,0.41263,2424.4,2424.3,0.41261]
[1728393308992,0.41261,2424.5,2424.4,0.4126]
[1728393310002,0.4126,2424.6,2424.5,0.41258]
[1728393310200,3.22,2424.7,2423.9,7.2405]
[1728393310394,0.41258,2424.7,2424.6,0.41258]
[1728393311511,1.03139,2424.8,2424.5,0.803]
[1728393311697,4.25139,2424.8,2424.3,0.3895]
[1728393311899,4.25139,2424.8,2424.2,1.03161]
[1728393311900,0.41263,2424.3,2424.2,0.80574]
[1728393312818,0.41266,2424.1,2424.0,0.4099]
[1728393312999,0.4127,2423.9,2423.8,1.2083]
[1728393313201,0.4127,2423.9,2423.5,3.2078]
[1728393313202,1.03171,2424.1,2423.6,0.4098]
[1728393313500,0.41273,2423.7,2423.6,0.82254]
[1728393313697,1.03178,2423.9,2423.7,0.41272]
[1728393313698,0.41273,2423.8,2423.7,0.41272]
[1728393314206,0.41273,2423.8,2423.6,0.4098]
[1728393314207,1.03189,2423.6,2422.8,0.46188616]
[1728393314407,3.22,2423.8,2422.8,0.46188616]
[1728393314408,0.41285,2423.0,2422.9,0.41287]
[1728393314709,0.41287,2422.9,2422.8,0.87475616]
[1728393314902,0.41287,2422.9,2422.8,0.46188616]
[1728393314903,4.54007,2422.9,2422.8,0.46188616]
[1728393315100,4.54007,2422.9,2422.7,1.03190655]
[1728393315101,4.1272,2422.9,2422.7,1.03190655]
[1728393315298,0.41289,2422.8,2422.7,1.03190655]
[1728393316097,3.22,2423.0,2422.7,1.03190655]
[1728393316298,0.41285,2423.0,2422.8,0.41288]
[1728393316510,0.41287,2422.9,2422.7,1.44479655]
[1728393316808,0.41287,2422.9,2422.7,1.03190655]
[1728393317007,0.41286,2423.0,2422.8,0.41288]
[1728393317201,0.41287,2422.9,2422.7,1.03190655]
[1728393317508,0.41286,2423.0,2422.8,0.41287]
[1728393317708,0.41288,2422.9,2422.7,1.44479655]
[1728393318110,0.41288,2422.9,2422.7,1.03190655]
[1728393318406,0.41289,2422.8,2422.7,1.44480655]
[1728393319409,0.41288,2422.9,2422.7,1.44480655]
[1728393319602,0.41288,2422.9,2422.8,0.41289]
[1728393319799,1.03215,2423.0,2422.7,1.44480655]
[1728393319800,0.41289,2422.8,2422.7,1.44480655]
[1728393320503,0.41287,2422.9,2422.8,0.41288]
[1728393320814,3.2078,2423.1,2422.9,0.41287]
[1728393320815,0.41286,2423.0,2422.9,0.41287]
[1728393321110,0.41289,2422.8,2422.7,1.03190655]
[1728393321304,0.41289,2422.8,2422.7,1.44480655]
[1728393321808,0.41289,2422.8,2422.7,1.03190655]
[1728393322914,3.62069,2422.8,2422.7,1.03190655]
[1728393323612,0.41289,2422.8,2422.7,1.44480655]
[1728393324106,0.41289,2422.8,2422.7,1.03190655]
[1728393324810,0.41289,2422.8,2422.7,1.44480655]
[1728393325310,0.41286,2423.0,2422.9,0.41286]
[1728393325507,0.41288,2422.9,2422.8,0.41288]
[1728393326208,0.41286,2423.0,2422.9,0.41286]
[1728393326502,4.2399,2423.1,2422.7,1.03190655]
[1728393327117,0.41287,2422.9,2422.8,0.41287]
[1728393327508,0.41287,2423.0,2422.9,0.41286]
[1728393327714,0.41287,2422.9,2422.8,0.41287]
[1728393330716,3.2078,2423.7,2422.8,13.335]
[1728393330926,0.41274,2423.7,2423.6,0.41273]
[1728393331221,4.135,2424.5,2423.6,1.03188]
[1728393331524,0.41268,2424.0,2423.9,0.41269]
[1728393331718,0.41268,2424.0,2423.7,4.4168]
[1728393331719,0.4127,2424.0,2423.8,0.4127]
[1728393331910,0.41271,2423.8,2423.7,1.62173]
[1728393332115,0.41267,2424.1,2424.0,0.41267]
[1728393332310,3.97,2424.3,2423.7,1.209]
[1728393332510,3.97,2424.3,2424.1,0.41266]
[1728393332719,3.97,2424.3,2423.7,2.24082]
[1728393333023,0.41266,2424.1,2424.0,0.41267]
[1728393333229,5.0016,2424.3,2423.7,1.209]
[1728393333428,0.4127,2423.9,2423.8,0.41271]
[1728393333818,0.41269,2424.0,2423.9,0.4127]
[1728393334018,0.41271,2423.9,2423.8,0.41271]
[1728393334219,8.2094,2424.3,2423.7,1.62172]
[1728393334220,0.41271,2423.8,2423.7,1.62172]
[1728393334914,1.03168,2424.1,2423.7,1.209]
[1728393335123,0.41271,2423.9,2423.8,0.4127]
[1728393335522,1.03168,2424.1,2423.7,1.209]
[1728393335715,0.41268,2424.1,2424.0,0.41267]
[1728393336129,7.1778,2424.3,2423.7,1.209]
[1728393336323,3.62044,2424.3,2424.2,0.41265]
[1728393336520,3.62044,2424.3,2423.8,1.03179]
[1728393336521,0.41265,2424.2,2424.1,0.41265]
[1728393336717,0.41267,2424.1,2424.0,0.41267]
[1728393337116,5.16653,2424.5,2423.7,1.209]
[1728393337321,5.16653,2424.5,2424.3,0.41262]
[1728393337322,0.41263,2424.4,2424.3,0.41262]
[1728393337620,0.4126,2424.5,2424.4,0.4126]
[1728393338122,3.2078,2424.6,2424.5,0.4126]
[1728393338123,3.62039,2424.6,2424.5,0.4126]
[1728393338622,0.41255,2424.8,2424.3,3.2078]
[1728393338816,4.54749,2425.2,2424.6,1.03145]
[1728393339016,3.2078,2425.3,2424.6,1.03145]
[1728393339224,0.4125,2425.1,2425.0,0.41251]
[1728393339432,3.62027,2425.3,2425.2,0.41248]
[1728393339726,3.2078,2425.3,2424.7,1.03141]
[1728393339925,3.2078,2425.3,2425.0,0.4125]
[1728393339926,0.41249,2425.2,2425.0,0.4125]
[1728393340124,3.2078,2425.3,2424.7,1.03141]
[1728393340624,3.2078,2425.3,2425.2,0.41248]
[1728393341225,3.62026,2425.3,2425.2,0.41248]
[1728393341533,3.2078,2425.3,2425.2,0.41248]
[1728393341731,3.2078,2425.3,2425.1,0.3984]
[1728393341732,0.41245,2425.4,2425.3,0.41246]
[1728393342126,0.41251,2425.0,2424.9,3.0078]
[1728393342330,0.4126,2424.5,2424.4,3.2078]
[1728393342721,0.4126,2424.5,2424.4,0.41261]
[1728393343230,0.41257,2424.7,2424.5,0.41259]
[1728393343424,0.41257,2424.7,2424.6,0.41258]
[1728393343622,1.03134,2424.9,2424.5,0.41259]
[1728393343831,0.41258,2424.6,2424.5,0.41259]
[1728393344032,0.41253,2424.9,2424.2,4.23942]
[1728393344234,0.41255,2424.8,2424.7,0.41255]
[1728393344526,0.41252,2425.0,2424.4,1.03154]
[1728393344828,0.41252,2425.0,2424.9,0.41253]
[1728393345329,4.23897,2425.3,2424.6,1.03145]
[1728393345330,0.4125,2425.1,2424.6,1.03145]
[1728393345530,0.41248,2425.2,2424.9,0.41252]
[1728393345830,1.03109,2425.5,2425.0,0.4272]
[1728393346033,0.41249,2425.1,2425.0,0.83971]
[1728393346218,0.41248,2425.2,2425.1,0.41249]
[1728393348029,44.0078,2425.6,2425.0,0.4272]
[1728393348337,0.41245,2425.4,2425.3,0.41246]
[1728393349225,40.8,2425.8,2425.0,0.8255]
[1728393349431,0.41245,2425.4,2425.3,0.41245]
[1728393349628,0.41244,2425.5,2425.4,0.41243]
[1728393350832,0.41242,2425.6,2425.5,0.41242]
[1728393351025,0.4124,2425.7,2425.6,0.4124]
[1728393351931,0.41238,2425.8,2425.7,0.41238]
[1728393352235,3.2078,2425.9,2425.4,0.4257]
[1728393352430,0.4124,2425.7,2425.6,0.4124]
[1728393352633,4.23871,2425.9,2425.5,0.80391]
[1728393352634,0.41241,2425.6,2425.5,0.80391]
[1728393352825,0.41248,2425.2,2425.1,3.2078]
[1728393353030,2.06222,2425.4,2424.9,0.41252]
[1728393353327,0.41253,2425.0,2424.9,0.41252]
[1728393353522,3.2078,2425.3,2424.8,0.8384]
[1728393353726,0.4125,2425.1,2425.0,0.41249]
[1728393354236,0.41249,2425.2,2425.1,0.41248]
[1728393354441,0.41251,2425.1,2425.0,0.4125]
[1728393354830,0.41251,2425.1,2425.0,4.5365]
[1728393355027,1.03116,2425.3,2424.8,0.8384]
[1728393355233,0.41249,2425.2,2425.1,0.41248]
[1728393355945,0.41249,2425.2,2425.1,4.53568]
[1728393356129,0.41249,2425.2,2425.1,0.41248]
[1728393356330,0.41249,2425.2,2425.1,4.53568]
[1728393356928,1.03114,2425.4,2425.1,4.53568]
[1728393356929,40.8,2425.5,2425.1,4.1232]
[1728393357134,0.41246,2425.4,2425.3,0.41245]
[1728393357935,3.2078,2425.6,2424.8,4.0462]
[1728393358134,0.41249,2425.2,2425.1,0.41247]
[1728393358443,0.41247,2425.3,2425.2,0.41246]
[1728393359036,0.41249,2425.2,2425.1,0.41248]
[1728393359345,0.41253,2424.9,2424.8,0.8384]
[1728393359548,0.41252,2425.0,2424.8,0.8384]
[1728393359737,0.41252,2425.0,2424.9,0.41251]
[1728393360135,0.41251,2425.1,2425.0,0.41249]
[1728393360538,0.4125,2425.1,2425.0,0.41249]
[1728393360738,1.03117,2425.3,2424.8,0.8384]
[1728393361040,1.03127,2425.1,2424.8,0.8384]
[1728393361241,0.41253,2424.9,2424.8,1.25094]
[1728393361940,0.41252,2425.0,2424.9,0.41251]
[1728393362139,0.41251,2425.1,2425.0,0.41249]
[1728393362445,0.41249,2425.2,2425.1,0.41248]
[1728393363136,4.135,2425.5,2425.1,4.1232]
[1728393363334,4.23885,2425.6,2425.1,4.1232]
[1728393363335,0.41239,2425.8,2425.7,0.41237]
[1728393364843,45.0386,2426.2,2425.5,4.23886]
[1728393365152,1.522,2426.7,2426.0,0.41232]
[1728393365153,0.41233,2426.1,2426.0,0.41232]
[1728393365446,45.45017,2426.5,2425.6,1.03103]
[1728393365747,45.45017,2426.5,2425.9,0.41235]
[1728393365748,0.41235,2426.0,2425.9,0.41235]
[1728393366950,4.1224,2426.0,2425.4,0.4286]
[1728393367152,0.41243,2425.5,2425.4,0.4286]
[1728393367347,0.41243,2425.5,2425.4,0.84104]
[1728393369649,0.41243,2425.5,2425.4,0.4286]
[1728393371558,4.1232,2425.5,2425.0,0.4211]
[1728393371854,0.41249,2425.2,2425.1,0.41248]
[1728393372549,0.41248,2425.3,2425.2,0.41246]
[1728393373849,0.41248,2425.3,2425.0,0.4211]
[1728393374055,0.41249,2425.2,2425.1,0.41249]
[1728393374259,0.41248,2425.3,2425.2,0.41246]
[1728393374456,0.41249,2425.2,2425.1,0.41248]
[1728393375147,0.41251,2425.0,2424.9,0.4075]
[1728393375353,0.41251,2425.0,2424.9,0.82001]
[1728393376351,0.41249,2425.2,2425.1,0.41248]
[1728393376752,4.25109,2425.5,2424.9,1.43882]
[1728393376955,0.41246,2425.4,2425.3,0.41244]
[1728393377656,3.2078,2425.7,2425.3,4.1232]
[1728393377852,0.41243,2425.5,2425.4,0.82182]
[1728393379647,0.41243,2425.5,2425.4,0.4094]
[1728393379854,3.22,2425.5,2424.9,1.47744973]
[1728393380051,0.41249,2425.2,2425.1,0.41248]
[1728393380249,3.22,2425.5,2425.0,0.391]
[1728393380557,0.41248,2425.3,2425.2,0.41246]
[1728393380755,0.41248,2425.3,2425.0,0.391]
[1728393380947,0.41249,2425.2,2425.1,0.41248]
[1728393382063,0.41248,2425.3,2425.2,0.41245]
[1728393382064,0.41247,2425.3,2425.2,0.41245]
[1728393389866,1.03104,2425.6,2425.0,1.42228]
[1728393390168,0.41244,2425.5,2425.4,0.41242]
[1728393390571,0.41242,2425.6,2425.5,0.41241]
[1728393392364,0.41242,2425.6,2425.5,0.82971]
[1728393392766,3.62022,2425.6,2425.3,0.41245]
[1728393392973,0.41244,2425.4,2425.3,0.41245]
[1728393393368,0.41244,2425.4,2425.1,0.8184]
[1728393393369,0.41248,2425.3,2425.2,0.41246]
[1728393393970,0.41248,2425.3,2425.1,0.4011]
[1728393394281,0.41253,2424.9,2424.8,0.82984]
[1728393394472,0.41251,2425.1,2425.0,0.4125]
[1728393395171,0.41253,2425.0,2424.9,0.41251]
[1728393395569,3.2078,2425.3,2424.8,0.4173]
[1728393395777,3.22,2425.4,2425.0,0.41249]
[1728393395778,0.41251,2425.1,2425.0,0.41249]
[1728393396468,1.0311,2425.5,2424.8,0.4173]
[1728393396675,0.41245,2425.5,2425.4,0.41243]
[1728393397563,0.41246,2425.4,2425.3,0.41245]
[1728393398474,3.22,2425.6,2425.2,1.2322]
[1728393398675,0.41244,2425.5,2425.4,0.41243]
[1728393399972,4.65053,2425.9,2425.2,5.48339]
[1728393400172,0.41242,2425.7,2425.6,0.41239]
[1728393401275,0.41239,2425.8,2425.7,0.41237]
[1728393401582,0.41239,2425.8,2425.7,1.22797]
[1728393402172,1.03085,2426.1,2425.7,0.8156]
[1728393402369,1.03085,2426.1,2425.9,0.41234]
[1728393402370,0.41236,2426.0,2425.9,0.41234]
[1728393403070,3.22,2426.3,2425.7,1.84656]
[1728393403375,0.41233,2426.2,2426.1,0.41231]
[1728393403676,0.41231,2426.3,2425.9,1.03089]
[1728393403878,0.41232,2426.2,2426.1,0.41231]
[1728393404679,0.41232,2426.1,2426.0,0.84093]
[1728393404980,1.03088,2426.0,2425.7,0.8156]
[1728393405180,1.03088,2426.0,2425.8,0.41236]
[1728393405181,0.41237,2425.9,2425.8,0.41236]
[1728393405583,1.03082,2426.2,2425.7,1.2317]
[1728393405786,0.41235,2426.1,2426.0,0.41233]
[1728393406673,0.41232,2426.2,2426.1,0.41231]
[1728393408492,0.41235,2426.0,2425.9,0.41234]
[1728393408782,0.41237,2425.8,2425.7,1.64407]
[1728393409288,7.45863,2426.1,2425.8,0.41235]
[1728393409289,0.41237,2425.9,2425.8,0.41235]
[1728393410380,0.41235,2426.0,2425.9,0.41234]
[1728393414088,3.62014,2426.1,2426.0,0.41231]
[1728393416685,0.41234,2426.1,2426.0,0.41231]
[1728393416891,3.62014,2426.1,2426.0,0.41231]
[1728393417188,0.41236,2426.0,2425.9,0.41234]
[1728393417987,0.41237,2425.9,2425.8,0.41236]
[1728393418791,0.41237,2425.8,2425.7,0.8316]
[1728393419391,0.41237,2425.8,2425.4,0.4156]
[1728393419392,0.41243,2425.5,2425.3,0.41244]
[1728393419593,0.41244,2425.5,2425.2,0.8045]
[1728393419795,0.41244,2425.5,2425.4,0.41242]
[1728393421698,3.2078,2425.8,2425.5,0.41241]
[1728393421699,0.41242,2425.6,2425.5,0.41241]
[1728393422298,3.2078,2425.8,2425.5,4.1224]
[1728393422598,0.41238,2425.8,2425.7,0.41239]
[1728393423096,0.41236,2426.0,2425.9,0.41234]